[Event "FRA-ch Teams Top 16-B 2022"]
[Site "Chartres"]
[Date "2022.06.15"]
[Round "7.10"]
[White "Neiksans, Arturs"]
[Black "Benitah, Yohan"]
[Result "1-0"]
[ECO "A57"]
[WhiteElo "2579"]
[BlackElo "2383"]
[Annotator "TA"]
[PlyCount "81"]
[EventDate "2022.06.09"]
[EventType "team-tourn"]
[EventCountry "FRA"]
[SourceTitle "playchess.com"]
[Source "ChessBase"]
[SourceQuality "1"]
[TimeControl "40/5400+30:1800+30"]

{[%evp 17,81,59,62,52,52,52,56,55,50,32,32,29,37,31,56,53,59,59,70,69,79,73,76,77,72,99,85,97,73,77,131,133,113,157,156,142,156,153,164,165,150,120,154,96,181,123,453,443,477,464,460,423,707,691,1072,1048,1020,1029,1404,1449,1918,1797,1531,1511,29998,29999]} 1. d4 {[%emt 0:00:26]} Nf6 {[%emt 0:02:55]} 2. c4 {[%emt 0:00:11]} c5 {[%emt 0:00:05]} 3. d5 {[%emt 0:00:08]} b5 {[%emt 0:06:53]} 4. cxb5 {[%emt 0:00:40]} a6 {[%emt 0:00:15]} 5. b6 {[%emt 0:02:36]} d6 {[%emt 0:07:50]} 6. Nc3 {[%emt 0:04:08]} Qxb6 {[%emt 0:00:52]} 7. e4 {[%emt 0:03:00]} g6 {[%emt 0:01:26]} 8. Nf3 {[%emt 0:00:47][%cal Bg1f3,Bf3d2,Bd2c4][%mdl 32]} Bg4 {[%emt 0:00:10]} 9. Qa4+ {[%emt 0:06:17]} Bd7 {[%emt 0:01:37]} 10. Qc2 {[%emt 0:00:24] A57: Benko/Volga Gambit.} Bg7 {[%emt 0:01:04]} 11. Nd2 {[%emt 0:04:50]} O-O {[%emt 0:01:10]} 12. Nc4 {[%emt 0:00:02] White is slightly better.} Qc7 {[%emt 0:03:35]} 13. Be2 {[%emt 0:00:16]} Bb5 {[%emt 0:01:40]} 14. O-O {[%emt 0:00:51]} Nbd7 {[%emt 0:01:21]} 15. Bd2 {[%emt 0:11:18] [#]} Bxc4 $146 {[%emt 0:08:38]} ({Predecessor:} 15... Nb6 16. Nxb5 axb5 17. Na5 Nbxd5 18. exd5 Rxa5 19. Bxa5 Qxa5 20. Rfd1 Nd7 21. a4 bxa4 22. Rxa4 {1-0 (38) Roa Alonso,S (2454)-Esquivias Gomez,F (2015) San Sebastian 2010}) 16. Bxc4 {[%emt 0:00:37]} Rfb8 {[%emt 0:00:05]} 17. Rab1 {[%emt 0:01:15]} Qa7 {[%emt 0:07:46]} 18. b3 {[%emt 0:11:29]} Ne5 {[%emt 0:06:39]} 19. Be2 $1 {[%emt 0:00:37]} Ne8 {[%emt 0:01:08]} 20. Kh1 {[%emt 0:01:00]} Nc7 {[%emt 0:04:38]} 21. a4 {[%emt 0:04:11][%cal Ba2a4,Ba4a5][%mdl 32]} Rb7 {[%emt 0:04:34]} 22. f4 {[%emt 0:02:46]} Nd7 {[%emt 0:00:33]} 23. Nd1 {[%emt 0:00:49]} Rab8 {[%emt 0:08:02]} (23... e6 $142) 24. Ne3 $16 {[%emt 0:01:01]} Nb6 {[%emt 0:07:11]} 25. h4 {[%emt 0:04:26]} e6 {[%emt 0:01:34][%cal Re6d5]} 26. a5 {[%emt 0:09:45] White is more active.} Nd7 {[%emt 0:01:28]} 27. dxe6 {[%emt 0:00:05]} Nxe6 {[%emt 0:00:34]} 28. Bc4 $1 {[%emt 0:00:15]} Nd4 {[%emt 0:05:06] [#]} 29. Qd3 {[%emt 0:00:40]} Nf6 {[%emt 0:00:39] [#]} 30. f5 {[%emt 0:06:09]} (30. Nd5 $142 $1) 30... Nh5 {[%emt 0:01:53]} (30... Kh8 $16 {might work better.}) 31. Ng4 {[%emt 0:04:22]} ({Better is} 31. Be1 $18) 31... Be5 $2 {[%emt 0:01:51][%mdl 8192] This move loses the game for Black.} (31... gxf5 $16 {is more resistant.} 32. exf5 d5 33. Bxd5 Rd7) 32. Nxe5 $18 {[%emt 0:02:27]} dxe5 {[%emt 0:00:02]} 33. Qe3 {[%emt 0:02:44]} Rd8 {[%emt 0:05:47]} (33... Nf4 $2 34. g3 Nc2 35. Qc3 $18) 34. Rf2 {[%emt 0:03:15]} Qb8 {[%emt 0:02:18]} (34... Nf4 $142 35. fxg6 hxg6) 35. Qg5 {[%emt 0:04:29] fxg6 is the strong threat.} Qd6 {[%emt 0:00:40]} 36. fxg6 {[%emt 0:02:03]} hxg6 {[%emt 0:00:48]} 37. Rbf1 {[%emt 0:00:13][%cal Rf2f7,Bb1f1,Bf1f6,Bf6g6][%mdl 32]} Rdd7 {[%emt 0:03:28] [#]} 38. Rf6 $1 {[%emt 0:04:03][%mdl 512]} Nxf6 {[%emt 0:00:18]} (38... Qf8 39. Qxg6+) 39. Rxf6 {[%emt 0:00:05]} Ne6 {[%emt 0:00:51]} 40. Bxe6 {[%emt 0:00:08]} Qxd2 {[%emt 0:01:29]} 41. Rxg6+ {[%emt 0:30:19] Weighted Error Value: White=0.07 (flawless) /Black=0.51} 1-0

[Event "FRA-ch Teams Top 16-B 2022"]
[Site "Chartres"]
[Date "2022.06.15"]
[Round "7.11"]
[White "Crut, Aurelien"]
[Black "Heinz, Timothee"]
[Result "*"]
[ECO "B11"]
[WhiteElo "2355"]
[BlackElo "2381"]
[Annotator "TA"]
[PlyCount "23"]
[EventDate "2022.06.09"]
[EventType "team-tourn"]
[EventCountry "FRA"]
[SourceTitle "playchess.com"]
[Source "ChessBase"]
[SourceQuality "1"]
[TimeControl "40/5400+30:1800+30"]

{[%evp 10,23,33,35,35,35,25,25,31,11,33,0,31,0,27,0]} 1. e4 {[%emt 0:00:03]} c6 {[%emt 0:00:13]} 2. Nc3 {[%emt 0:00:06]} d5 {[%emt 0:00:04]} 3. Nf3 {[%emt 0:00:04]} dxe4 {[%emt 0:00:16]} 4. Nxe4 {[%emt 0:00:06]} Nf6 {[%emt 0:00:13]} 5. Qe2 {[%emt 0:00:28]} Nxe4 {[%emt 0:00:18]} 6. Qxe4 {[%emt 0:00:04]} Be6 {[%emt 0:00:24] B11: Caro-Kann: Two Knights Variation.} 7. b3 {[%emt 0:10:57]} Nd7 {[%emt 0:01:23][%cal Bb8d7,Bd7f6,Bf6d5][%mdl 32]} 8. Bb2 {[%emt 0:00:56]} Nf6 {[%emt 0:01:02]} 9. Qe3 {[%emt 0:08:10]} Nd5 {[%emt 0:02:17] [#]} 10. Qe4 $146 {[%emt 0:08:06]} ({Predecessor:} 10. Qd4 Bf5 11. Rc1 e6 12. a3 Qb6 13. Be2 Bc5 14. Qh4 Be7 15. Qd4 Bc5 16. Qxg7 Bxf2+ 17. Kf1 O-O-O 18. Qxh8 Rxh8 19. Bxh8 {½-½ (59) Juhasz,B (2250)-Vujnovic,P (2129) Tornelo INT 2021}) 10... Nf6 {[%emt 0:01:04]} 11. Qe3 {[%emt 0:00:49]} Nd5 {[%emt 0:01:08]} 12. Qe4 {[%emt 0:00:15] Weighted Error Value: White=0.15 (very precise) /Black=0.05 (flawless)} *

[Event "FRA-ch Teams Top 16-B 2022"]
[Site "Chartres"]
[Date "2022.06.15"]
[Round "7.12"]
[White "Godart, Francois"]
[Black "Marzolo, Cyril"]
[Result "1/2-1/2"]
[ECO "A62"]
[WhiteElo "2399"]
[BlackElo "2376"]
[Annotator "TA"]
[PlyCount "38"]
[EventDate "2022.06.09"]
[EventType "team-tourn"]
[EventCountry "FRA"]
[SourceTitle "playchess.com"]
[Source "ChessBase"]
[SourceQuality "1"]
[TimeControl "40/5400+30:1800+30"]

{[%evp 18,24,35,15,20,18,30,21,18]} 1. d4 {[%emt 0:00:03]} Nf6 {[%emt 0:06:45]} 2. c4 {[%emt 0:00:07]} e6 {[%emt 0:00:05]} 3. g3 {[%emt 0:00:12]} c5 {[%emt 0:00:54]} 4. d5 {[%emt 0:00:27]} exd5 {[%emt 0:00:18]} 5. cxd5 {[%emt 0:00:05]} d6 {[%emt 0:00:07]} 6. Nc3 {[%emt 0:00:20]} g6 {[%emt 1:25:21]} 7. Bg2 {[%emt 0:00:08]} Bg7 {[%emt 0:00:00]} 8. Nf3 {[%emt 0:00:07]} O-O {[%emt 0:00:00]} 9. O-O {[%emt 0:00:08]} Re8 {[%emt 0:00:00]} 10. Bf4 {[%emt 1:33:53]} Bf5 $1 {[%emt 0:00:00][%mdl 4] outshines the older 10...a6. A62: Modern Benoni: Fianchetto Variation without early ...Nbd7.} 11. Nh4 {[%emt 0:00:00]} Bg4 {[%emt 0:00:00]} 12. Qd2 {[%emt 0:00:00]} b5 {[%emt 0:00:00] [#] A rather calm draw.} {Predecessor:} 13. Nxb5 $146 Rxe2 14. Qc1 Ne4 15. Bxe4 Rxe4 16. Nxd6 Rd4 17. Re1 Nd7 18. Bg5 Qb8 19. Be7 Rxd5 {0-1 (46) Adhiban,B (2639)-Harikrishna,P (2748) Douglas 2019} 1/2-1/2

[Event "FRA-ch Teams Top 16-B 2022"]
[Site "Chartres"]
[Date "2022.06.15"]
[Round "7.13"]
[White "Rouler, Charly"]
[Black "Dionisi, Thomas"]
[Result "0-1"]
[ECO "E32"]
[WhiteElo "2345"]
[BlackElo "2408"]
[Annotator "TA"]
[PlyCount "73"]
[EventDate "2022.06.09"]
[EventType "team-tourn"]
[EventCountry "FRA"]
[SourceTitle "playchess.com"]
[Source "ChessBase"]
[SourceQuality "1"]
[TimeControl "40/5400+30:1800+30"]

{[%evp 20,73,10,12,20,23,32,12,0,0,0,0,0,0,14,0,4,0,0,-4,0,0,0,0,0,-46,0,-81,-83,-147,0,-235,-213,-219,-246,-239,-250,-239,-248,-236,169,0,127,112,127,121,117,103,102,95,62,-878,-877,-843,-841,-1239]} 1. d4 {[%emt 0:00:04]} Nf6 {[%emt 0:00:12]} 2. c4 {[%emt 0:00:15]} e6 {[%emt 0:00:09]} 3. Nc3 {[%emt 0:00:04]} Bb4 {[%emt 0:00:05]} 4. Qc2 {[%emt 0:00:03]} O-O {[%emt 0:00:12]} 5. a3 {[%emt 0:00:38]} Bxc3+ {[%emt 0:00:07]} 6. Qxc3 {[%emt 0:00:02]} b6 {[%emt 0:00:11]} 7. Bg5 {[%emt 0:00:42]} Bb7 {[%emt 0:00:05]} 8. e3 {[%emt 0:00:53]} d6 {[%emt 0:00:39]} 9. f3 {[%emt 0:01:01]} Nbd7 {[%emt 0:02:15]} 10. Bd3 {[%emt 0:02:09]} c5 {[%emt 0:00:24]} 11. Ne2 {[%emt 0:04:49]} cxd4 {[%emt 0:03:33] E32: Nimzo-Indian: Classical (4 Qc2): 4...0-0.} 12. exd4 {[%emt 0:10:44]} Rc8 {[%emt 0:01:12]} 13. Qb3 {[%emt 0:01:18]} d5 {[%emt 0:11:10] The position is equal.} 14. O-O {[%emt 1:14:48][%cal Oc4c5]} dxc4 {[%emt 0:19:38]} 15. Bxc4 {[%emt 0:00:00]} h6 {[%emt 0:00:08]} 16. Bh4 {[%emt 0:00:00]} Qe7 {[%emt 0:00:18]} 17. Rfe1 {[%emt 0:00:00] [#]} g5 $146 {[%emt 0:13:07]} ({Predecessor:} 17... Rfd8 18. Rad1 Nf8 19. Bd3 Bd5 {½-½ (19) Ghafari,R-Hjelm,N Sweden 1996}) 18. Bg3 {[%emt 0:00:00]} Nh5 {[%emt 0:01:14]} 19. Bf2 {[%emt 0:00:00]} Qd6 {[%emt 0:02:33]} 20. Nc3 {[%emt 0:00:00][%cal Rc4e6]} Ndf6 {[%emt 0:08:37]} 21. Rac1 {[%emt 0:00:00]} Nf4 {[%emt 0:05:24]} 22. h4 {[%emt 0:00:00]} (22. Bf1 $11 {deserves consideration.}) 22... Kh8 {[%emt 0:07:16]} (22... gxh4 $15 23. Nb5 Qb8 24. Bxh4 N6h5) 23. hxg5 {[%emt 0:00:00]} (23. Bf1 $11) 23... Rg8 $1 $17 {[%emt 0:13:39]} (23... hxg5 24. Bf1 $11) 24. Nb5 {[%emt 0:00:00] [#]} (24. Re5 $142) 24... Qe7 {[%emt 0:08:38] Black is more active.} (24... Qb8 $1 $17 25. gxf6 (25. Rc2 a6) 25... Nxg2) 25. gxf6 {[%emt 0:00:00]} (25. Qe3 $1 $11 N6d5 26. Bxd5 Qxg5 27. g4 Rxc1 28. Rxc1 (28. Bxb7 $2 Rxe1+ 29. Qxe1 Nh3+ 30. Kg2 Nxf2 $19) 28... Bxd5 29. Rc7) 25... Rxg2+ $19 {[%emt 0:00:34]} 26. Kf1 {[%emt 0:00:00]} Qxf6 {[%emt 0:00:07]} 27. Qe3 {[%emt 0:00:00] [#]} (27. Nxa7 Rh2 $1 28. Re5 Rh1+ 29. Bg1 Rg8 $19) 27... Rcg8 $1 {[%emt 0:01:32]} 28. Qe5 {[%emt 0:03:33]} (28. Nxa7 $2 Nh3 29. Re2 Bxf3 $19) 28... Qxe5 $40 {[%emt 0:00:02][%mdl 128] White is in trouble. Really sharp!} 29. Rxe5 {[%emt 0:00:35]} Nh3 $4 {[%emt 0:00:19][%mdl 8192]} (29... Rh2 $19 {avoids the disaster.} 30. Ke1 Rgg2) 30. Rc2 $2 {[%emt 0:01:02]} (30. Be3 $18 {aiming for Nd6.} Bxf3 31. Ke1) 30... Bxf3 {[%emt 0:00:28]} (30... Rh2 $1 $11 {keeps the balance.}) 31. Ke1 $16 {[%emt 0:00:22]} Rh2 {[%emt 0:01:17]} 32. Re3 {[%emt 0:01:25]} (32. Nxa7 Rh1+ 33. Kd2 (33. Bf1 $2 Bg2 $19) 33... Rg2 $19) 32... Bh5 {[%emt 0:00:51]} 33. Bf1 {[%emt 0:00:54]} ({Of course not} 33. Nxa7 $6 Nf4 $11) 33... Nf4 {[%emt 0:00:31]} 34. d5 {[%emt 0:01:22] Black must now prevent Re4.} ({But not} 34. Nxa7 $6 Ng2+ 35. Kd2 (35. Bxg2 Rgxg2 36. Kf1 Rg8 $15) 35... Nxe3 36. Kxe3 Rh1 $11) 34... Rh1 {[%emt 0:00:28] Threatens to win with ...Ng2+.} 35. Re5 $2 {[%emt 0:00:42][%mdl 8192]} (35. Bg3 $14 Nxd5 36. Rb3) 35... Nd3+ $19 {[%emt 0:00:22]} 36. Kd2 {[%emt 0:00:01]} Nxe5 {[%emt 0:00:19]} 37. Ke3 {[%emt 0:01:34] Weighted Error Value: White=0.63/Black=0.42} 0-1

[Event "FRA-ch Teams Top 16-B 2022"]
[Site "Chartres"]
[Date "2022.06.15"]
[Round "7.14"]
[White "Housieaux, David"]
[Black "Brailly-Vignal, Bastien"]
[Result "1-0"]
[ECO "A14"]
[WhiteElo "2412"]
[BlackElo "2372"]
[Annotator "TA"]
[PlyCount "95"]
[EventDate "2022.06.09"]
[EventType "team-tourn"]
[EventCountry "FRA"]
[SourceTitle "playchess.com"]
[Source "ChessBase"]
[SourceQuality "1"]
[TimeControl "40/5400+30:1800+30"]

{[%evp 20,95,0,0,10,0,0,-10,0,0,1,7,9,0,30,11,58,20,37,0,0,0,-10,-32,-21,-21,-25,-47,-56,-102,-39,-63,0,-45,-11,-12,0,0,0,0,72,66,91,85,91,56,358,350,337,350,380,329,496,456,493,488,436,405,961,966,1054,1045,1088,1092,1909,1851,29982,29981,29989,29990,29990,29991,29991,29992,29992,29993,29993,29993]} 1. Nf3 {[%emt 0:00:03]} Nf6 {[%emt 0:00:08]} 2. c4 {[%emt 0:00:04]} e6 {[%emt 0:00:37]} 3. g3 {[%emt 0:00:27]} b6 {[%emt 0:00:31]} 4. Bg2 {[%emt 0:00:24]} Bb7 {[%emt 0:00:06]} 5. O-O {[%emt 0:00:23]} Be7 {[%emt 0:01:47]} 6. b3 {[%emt 0:01:36]} O-O {[%emt 0:01:45]} 7. Bb2 {[%emt 0:02:31]} d5 {[%emt 0:02:23]} 8. e3 {[%emt 0:01:10]} c5 {[%emt 0:08:18]} 9. Nc3 {[%emt 0:01:09]} dxc4 {[%emt 0:04:34]} 10. bxc4 {[%emt 0:00:09]} Nc6 {[%emt 0:00:43]} 11. Qe2 {[%emt 0:06:01]} Qc8 {[%emt 0:11:37] A14: English Opening: 1...e6 with b3 by White.} 12. Rad1 {[%emt 0:06:33]} Rd8 {[%emt 0:01:32]} 13. Ne1 {[%emt 0:05:52]} Na5 {[%emt 1:02:59] The position is equal.} 14. f4 {[%emt 0:02:13]} Bxg2 {[%emt 0:00:00]} 15. Nxg2 {[%emt 0:00:13] [#]} Ne8 $146 {[%emt 0:00:00]} ({Predecessor:} 15... Qd7 16. d3 a6 17. a4 Rac8 18. g4 Rc6 19. g5 Ne8 20. Ne4 Nd6 21. Ng3 Nf5 {½-½ (30) Harika,D (2515)-Khademalsharieh,S (2450) Abu Dhabi 2016}) 16. g4 {[%emt 0:00:53][%cal Bg3g4,Bg4g5][%mdl 32]} Nd6 {[%emt 0:00:00]} 17. d3 {[%emt 0:00:40]} f5 {[%emt 0:00:00]} (17... Nc6 $11) 18. g5 {[%emt 0:16:38]} Bf8 {[%emt 0:00:00]} 19. Rf3 {[%emt 0:01:53]} Rd7 {[%emt 0:00:00]} 20. Ba1 {[%emt 0:02:49]} Qe8 {[%emt 0:00:00]} 21. Rh3 {[%emt 0:02:48]} Rad8 {[%emt 0:00:00]} 22. Ne1 {[%emt 0:01:06]} g6 {[%emt 0:00:00]} 23. Rg3 {[%emt 0:03:54]} Bg7 {[%emt 0:00:00]} 24. Rc1 {[%emt 0:00:43]} (24. Rb1 $1 $15 {was preferrable.}) 24... Nc6 {[%emt 0:00:00]} (24... a6 $1 $17 25. Rh3 b5 26. cxb5 axb5) 25. h4 $15 {[%emt 0:00:24][%cal Bh2h4,Bh4h5][%mdl 32]} a6 {[%emt 0:00:00]} (25... Nb7 $15) 26. Na4 {[%emt 0:07:13]} Bxa1 {[%emt 0:00:00]} (26... Nb4 $5 {[%cal Rb4d3]} 27. Rg2 (27. Nxb6 Rb7 $15) 27... Bxa1 28. Rxa1 Nf7 $15) 27. Rxa1 {[%emt 0:00:05]} Rb7 {[%emt 0:00:00]} 28. h5 {[%emt 0:12:59]} Nb4 {[%emt 0:00:00]} 29. Nc3 {[%emt 0:00:57]} e5 {[%emt 0:00:00]} (29... gxh5 $11 {remains equal.} 30. Rh3 b5) 30. hxg6 $1 $16 {[%emt 0:03:23]} exf4 {[%emt 0:00:00]} 31. gxh7+ {[%emt 0:01:01]} Rxh7 {[%emt 0:00:00]} 32. exf4 {[%emt 0:00:03] Black must now prevent Qxe8+.} Re7 {[%emt 0:00:00][%mdl 8192] This move loses the game for Black.} (32... Qxe2 $14 33. Nxe2 Kg7) 33. Qf2 $18 {[%emt 0:01:25]} Qh5 {[%emt 0:00:00] [#]} 34. a3 $1 {[%emt 0:00:36]} Qh8 {[%emt 0:04:18] [#]} (34... Rh7 $2 35. Qg2 Nc6 36. Nd5 $18) 35. Rc1 $1 {[%emt 0:01:56]} ({Inferior is} 35. axb4 Qxc3 36. Nc2 cxb4 37. Qxb6 (37. Rxa6 $2 b3 $19) 37... Rdd7 $11) 35... Rh7 {[%emt 0:00:48]} (35... Rde8 $142 36. axb4 cxb4) 36. Qf3 {[%emt 0:02:33]} Qd4+ {[%emt 0:03:36]} 37. Kg2 {[%emt 0:02:00]} Nxc4 {[%emt 0:01:36][%cal Od8e8] aiming for ...Re8!} 38. axb4 {[%emt 0:02:21]} (38. dxc4 Qd2+ 39. Ne2 Na2 $18) 38... cxb4 {[%emt 0:00:23]} (38... Re7 $142 39. Qf2 (39. dxc4 Qd2+ 40. Kf1 Qxc1 $18) 39... Ne3+ 40. Kg1 Ng4 41. Qxd4 Rxd4) 39. Ne2 {[%emt 0:00:55]} Qh8 {[%emt 0:01:47]} 40. Rxc4 {[%emt 0:00:18]} Rh2+ {[%emt 0:00:29]} 41. Kg1 {[%emt 0:30:25][%cal Bg2g1,Bg1f2,Bf2f1,Bf1f2][%mdl 32]} b3 {[%emt 0:07:00]} 42. Qe3 {[%emt 0:00:00] White threatens Qe6+ and mate.} Rh1+ {[%emt 0:05:01]} 43. Kf2 {[%emt 0:00:00] White mates.} b2 {[%emt 0:05:53]} 44. Qe6+ {[%emt 0:00:00]} Kf8 {[%emt 0:00:10]} 45. Rc7 {[%emt 0:00:00][%csl Gc7][%cal Re6f7]} Qh2+ {[%emt 0:01:07]} 46. Ng2 {[%emt 0:00:00][%csl Gc7][%cal Re6f7]} Rf1+ {[%emt 0:01:07]} 47. Kxf1 {[%emt 0:00:00][%csl Gc7][%cal Re6f7]} b1=Q+ {[%emt 0:02:05]} 48. Kf2 {[%emt 0:00:00] Weighted Error Value: White=0.08 (flawless) /Black=0.66} 1-0

[Event "FRA-ch Teams Top 16-B 2022"]
[Site "Chartres"]
[Date "2022.06.15"]
[Round "7.15"]
[White "Buscara, Sevan"]
[Black "Chabanon, Jean-Luc"]
[Result "0-1"]
[ECO "A14"]
[WhiteElo "2385"]
[BlackElo "2432"]
[Annotator "TA"]
[PlyCount "68"]
[EventDate "2022.06.09"]
[EventType "team-tourn"]
[EventCountry "FRA"]
[SourceTitle "playchess.com"]
[Source "ChessBase"]
[SourceQuality "1"]
[TimeControl "40/5400+30:1800+30"]

{[%evp 20,68,9,10,12,27,42,63,88,85,85,85,84,66,67,78,75,71,101,31,31,22,19,0,22,14,31,29,160,0,0,0,2,0,1,-727,-727,-727,-727,-727,-719,-718,-635,-635,-635,-635,-43,-635,-634,-613,-583]} 1. Nf3 {[%emt 0:00:07]} Nf6 {[%emt 0:01:05]} 2. c4 {[%emt 0:00:36]} e6 {[%emt 0:01:01]} 3. g3 {[%emt 0:00:19]} d5 {[%emt 0:00:19]} 4. Bg2 {[%emt 0:00:12]} Be7 {[%emt 0:00:25]} 5. O-O {[%emt 0:00:18]} O-O {[%emt 0:00:45]} 6. b3 {[%emt 0:01:13]} c5 {[%emt 0:02:39]} 7. cxd5 {[%emt 0:00:36]} Nxd5 {[%emt 0:00:12]} 8. d4 {[%emt 0:01:27]} Nc6 {[%emt 0:02:22]} 9. Bb2 {[%emt 0:08:49]} cxd4 {[%emt 0:09:01]} 10. Nxd4 {[%emt 0:00:50]} Nxd4 {[%emt 0:07:02]} 11. Qxd4 {[%emt 0:03:47][%csl Gb2][%cal Rd4g7]} Bf6 {[%emt 0:01:51] A14: English Opening: 1...e6 with b3 by White.} 12. Qd2 {[%emt 0:00:09]} Bxb2 {[%emt 0:05:26]} 13. Qxb2 {[%emt 0:00:11]} Bd7 {[%emt 0:05:37] White is slightly better.} 14. Rd1 {[%emt 0:06:51][%cal Bf1d1,Bd1d3,Bd3e3][%mdl 32]} Bc6 {[%emt 0:14:54]} 15. Bxd5 {[%emt 0:02:09]} exd5 {[%emt 0:00:10]} 16. Qd4 {[%emt 0:00:30] [#]} Qe7 $146 {[%emt 0:05:20]} ({Predecessor:} 16... Re8 17. Nc3 Qe7 18. e3 Qe6 19. Rd2 a6 20. Ne2 Rad8 21. Rad1 h6 22. Qf4 g5 {0-1 (50) Claridge Hansen,W (2290)-Petrov,M (2520) Chess.com INT 2020}) 17. Nc3 {[%emt 0:01:29]} a5 {[%emt 0:02:28]} 18. Rd3 {[%emt 0:04:10]} b5 {[%emt 0:05:41][%cal Bb7b5,Bb5b4][%mdl 32]} 19. Rad1 {[%emt 0:07:24]} (19. e3 $16) 19... b4 $14 {[%emt 0:05:12]} 20. Re3 {[%emt 0:04:20]} (20. Nxd5 {feels hotter.} Bxd5 21. Qxd5 Qxe2 22. R1d2) 20... Qc7 {[%emt 0:01:10]} 21. Nb1 {[%emt 0:00:53]} ({Wrong is} 21. Nxd5 $2 Bxd5 22. Qe5 (22. Qxd5 $2 Rad8 $19) 22... Qxe5 23. Rxe5 Be6 $19) 21... Bb7 {[%emt 0:04:47]} 22. Nd2 {[%emt 0:02:26]} Qc2 {[%emt 0:03:23]} 23. Nf3 {[%emt 0:00:25]} Qxa2 {[%emt 0:00:55]} (23... Rfe8 $11 {keeps the balance.}) 24. Ne1 $2 {[%emt 0:06:02]} ({White has to play} 24. Re7 $16) 24... a4 $1 $36 {[%emt 0:03:40][%mdl 2048] Black is pushing.} 25. Ra1 {[%emt 0:03:26][%mdl 64] Skewer, Trapped Piece} axb3 {[%emt 0:00:23]} 26. Rxa2 {[%emt 0:00:05]} bxa2 {[%emt 0:00:03]} 27. Nc2 {[%emt 0:00:54][%mdl 8192]} (27. Qa1 $11 Rfc8 28. f3) 27... Rfc8 $19 {[%emt 0:01:20]} 28. Na1 {[%emt 0:00:18] [#]} Rc1+ $1 {[%emt 0:00:54]} 29. Kg2 {[%emt 0:00:04] [#]} Rxa1 $1 {[%emt 0:01:53][%mdl 512]} 30. Re7 {[%emt 0:07:33]} Rg1+ {[%emt 0:01:42]} 31. Kxg1 {[%emt 0:00:23] Qa1 is the strong threat.} a1=Q+ {[%emt 0:00:22]} 32. Qxa1 {[%emt 0:00:03]} Rxa1+ {[%emt 0:00:05]} 33. Kg2 {[%emt 0:00:02][%cal Re7e8]} Bc6 {[%emt 0:00:22] Inhibits Re8+.} 34. Rc7 {[%emt 0:00:04] Rc8+ would kill now.} Be8 {[%emt 0:00:14] Weighted Error Value: White=0.58/Black=0.21 (precise)} 0-1

[Event "FRA-ch Teams Top 16-B 2022"]
[Site "Chartres"]
[Date "2022.06.15"]
[Round "7.16"]
[White "Monpeurt, Cyrielle"]
[Black "Djidjeli, Sarah"]
[Result "1-0"]
[ECO "B23"]
[WhiteElo "2172"]
[BlackElo "2040"]
[Annotator "NA RC"]
[PlyCount "63"]
[EventDate "2022.06.09"]
[EventType "team-tourn"]
[EventCountry "FRA"]
[SourceTitle "playchess.com"]
[Source "ChessBase"]
[SourceQuality "1"]
[TimeControl "40/5400+30:1800+30"]

1. e4 {[%emt 0:00:03]} c5 {[%emt 0:00:03]} 2. Nc3 {[%emt 0:00:12]} Nc6 {[%emt 0:00:04]} 3. Nge2 {[%emt 0:00:16]} Nd4 {[%emt 0:04:15]} 4. d3 {[%emt 0:00:26]} g6 {[%emt 0:03:23]} 5. Nxd4 {[%emt 0:00:19]} cxd4 {[%emt 0:00:05]} 6. Ne2 {[%emt 0:00:04]} Bg7 {[%emt 0:00:17]} 7. c3 {[%emt 0:00:11]} dxc3 {[%emt 0:01:30]} 8. Nxc3 {[%emt 0:00:05]} d6 {[%emt 0:05:07]} 9. Be3 {[%emt 0:00:53]} Nf6 {[%emt 0:02:11]} 10. d4 {[%emt 0:00:52]} a6 {[%emt 0:03:21]} 11. f3 {[%emt 0:01:33]} e5 {[%emt 0:06:56]} 12. dxe5 {[%emt 0:08:48]} dxe5 {[%emt 0:00:04]} 13. Qxd8+ {[%emt 0:00:11]} Kxd8 {[%emt 0:00:02]} 14. O-O-O+ {[%emt 0:00:19]} Ke8 {[%emt 0:02:58]} 15. Bc4 {[%emt 0:04:56]} Bd7 {[%emt 0:03:27]} 16. Bg5 {[%emt 0:07:00]} Bc6 {[%emt 0:07:15]} 17. Rd6 {[%emt 0:05:06]} Ke7 {[%emt 0:01:59]} 18. Rhd1 {[%emt 0:00:06]} Rac8 {[%emt 0:05:59]} 19. Bb3 {[%emt 0:08:45]} h6 {[%emt 0:11:34]} 20. Be3 {[%emt 0:00:27]} Nd7 {[%emt 0:01:30]} 21. Kb1 {[%emt 0:02:40]} Rhd8 {[%emt 0:04:13]} 22. R6d2 {[%emt 0:06:36]} f5 {[%emt 0:07:27]} 23. Bd5 {[%emt 0:06:12]} Bxd5 {[%emt 0:04:13]} 24. Nxd5+ {[%emt 0:00:09]} Ke8 {[%emt 0:00:10]} 25. Rd3 {[%emt 0:04:02]} fxe4 {[%emt 0:03:08]} 26. fxe4 {[%emt 0:00:06]} g5 {[%emt 0:00:02]} 27. Rb3 {[%emt 0:04:14]} b5 {[%emt 0:00:35]} 28. Ra3 {[%emt 0:03:15]} Rc4 {[%emt 0:03:42]} 29. Rxa6 {[%emt 0:01:29]} Rxe4 {[%emt 0:01:09]} 30. Rf1 {[%emt 0:05:11]} Nf8 {[%emt 0:05:13]} 31. Nc7+ {[%emt 0:01:51]} Kd7 {[%emt 0:00:04]} 32. Rf7+ {[%emt 0:01:14]} 1-0